bitfinex-derivatives/quotes_BNBF0:USTF0_20250130
["timestamp","ask_amount","ask_price","bid_price","bid_amount"]
[1738264035899,1.09726492,681.05,680.21,0.2562507]
[1738264036104,1.09726492,681.16,680.22,0.2562507]
[1738264036304,1.09726492,681.16,680.19,0.2562507]
[1738264036903,1.09726492,681.16,680.2,0.25625395]
[1738264037103,1.09726492,681.16,680.19,0.25625395]
[1738264037302,1.09726492,681.16,680.2,0.25625395]
[1738264037505,1.09726492,681.16,680.19,0.25625395]
[1738264037799,1.09726492,681.16,680.2,0.25625395]
[1738264037999,1.09726492,681.16,680.19,0.25625395]
[1738264038200,1.09726492,681.16,680.2,0.25625395]
[1738264038504,1.09726492,681.16,680.21,0.25625395]
[1738264038705,1.09726492,681.17,680.22,0.25625395]
[1738264038899,1.09726492,681.17,680.18,2.25277865]
[1738264039100,1.09726492,681.17,680.19,0.25626757]
[1738264040009,1.09726492,681.17,680.18,2.25277865]
[1738264042508,1.09726492,681.16,680.18,1.156]
[1738264045911,1.09726492,681.1,680.18,1.156]
[1738264049404,1.09726492,681.13,680.18,1.156]
[1738264051715,1.09726492,681.12,680.18,1.156]
[1738264051908,0.26991448,681.11,680.18,1.156]
[1738264052717,1.09726492,681.12,680.18,1.156]
[1738264055118,1.09726492,681.06,680.18,1.156]
[1738264057920,1.09726492,681.24,680.18,1.156]
[1738264064022,1.09726492,681.2,680.18,1.156]
[1738264064519,0.26994271,681.19,680.18,1.156]
[1738264066424,1.09726492,681.2,680.18,1.156]
[1738264066625,0.26994249,681.19,680.18,1.156]
[1738264067226,1.09726492,681.13,680.18,1.156]
[1738264078538,1.09726492,681.1,680.18,1.156]
[1738264080943,0.26994249,681.19,680.18,1.156]
[1738264080944,1.09726492,681.16,680.18,1.156]
[1738264081741,0.26990339,681.15,680.19,0.25641432]
[1738264082142,0.26990339,681.15,680.2,0.25641432]
[1738264082439,0.26990339,681.15,680.02,0.29410899]
[1738264082643,0.26990339,681.15,680.03,0.25641457]
[1738264083144,0.26990467,681.14,680.04,0.25641556]
[1738264083344,0.26990467,681.13,680.04,0.25641556]
[1738264083644,1.09726492,681.16,680.04,0.25641556]
[1738264083844,0.26990091,681.15,680.04,0.25641556]
[1738264084045,1.09726492,681.09,680.11,1.09677865]
[1738264084244,1.09726492,681.09,680.12,0.25641556]
[1738264087748,1.09726492,681.12,680.12,0.25641556]
[1738264087948,1.09726492,681.12,680.09,0.25641556]
[1738264088143,1.09726492,681.12,680.1,0.25641556]
[1738264088350,1.09726492,681.12,680.11,0.25641556]
[1738264088548,1.09726492,681.12,680.09,0.25641556]
[1738264088743,1.09726492,681.12,680.12,0.25641556]
[1738264088947,1.09726492,681.12,680.13,0.25641556]
[1738264089147,1.09726492,681.12,680.14,0.25641556]
[1738264089343,1.09726492,681.12,680.09,0.25641556]
[1738264089547,1.09726492,681.12,680.1,0.25641556]
[1738264089748,1.09726492,681.12,680.09,0.25641556]
[1738264090050,1.09726492,681.12,680.1,0.25641556]
[1738264090250,1.09726492,681.12,680.11,0.25641556]
[1738264090451,1.09726492,681.12,680.12,0.25641556]
[1738264090646,1.09726492,681.12,680.09,0.25641556]
[1738264090849,1.09726492,681.12,680.07,1.09677865]
[1738264091051,1.09726492,681.12,680.08,0.25640615]
[1738264092553,1.09726492,681.12,680.09,0.25641014]
[1738264092749,1.09726492,681.12,680.08,0.25641014]
[1738264092954,1.09726492,681.12,680.09,0.25641014]
[1738264093149,1.09726492,681.12,680.08,0.25641014]
[1738264093353,1.09726492,681.12,680.09,0.25641014]
[1738264093549,1.09726492,681.12,680.08,0.25641014]
[1738264094151,1.09726492,681.16,680.08,0.25641014]
[1738264094454,1.09726492,681.16,680.09,0.25641014]
[1738264094658,1.09726492,681.16,680.1,0.25641014]
[1738264094853,1.09726492,681.16,680.06,1.09677865]
[1738264094854,1.09726492,681.16,680.11,0.25639383]
[1738264095051,1.09726492,681.16,680.07,0.25639383]
[1738264095250,1.09726492,681.16,680.08,0.25639383]
[1738264095555,1.09726492,681.16,680.06,1.09677865]
[1738264095759,1.09726492,681.16,680.09,0.25639932]
[1738264095958,1.09726492,681.16,680.1,0.25639932]
[1738264096154,1.09726492,681.16,680.07,0.25639932]
[1738264096354,1.09726492,681.17,680.09,1.09677865]
[1738264096556,1.09726492,681.17,680.1,0.25639932]
[1738264098755,1.09726492,681.17,680.09,1.09677865]
[1738264098959,1.09726492,681.17,680.1,0.25640951]
[1738264099962,1.36716478,681.16,680.1,0.25640951]
[1738264100257,1.09726492,681.16,680.07,1.09677865]
[1738264100460,1.09726492,681.16,680.08,0.256411]
[1738264101962,0.26989964,681.15,680.08,0.256411]
[1738264102164,1.09726492,681.14,680.08,1.35318965]
[1738264102362,1.09726492,681.14,680.09,0.256411]
[1738264103457,1.09726492,681.14,680.08,1.09677865]
[1738264103662,1.09726492,681.14,680.09,0.25639696]
[1738264105264,0.26989744,681.13,680.09,0.25639696]
[1738264105565,1.09726492,681.14,680.11,1.09677865]
[1738264105767,0.26989689,681.13,680.12,0.25639696]
[1738264109265,1.09726492,681.08,680.16,1.09677865]
[1738264109563,1.09726492,681.08,680.17,0.25639696]
[1738264111263,1.09726492,681.08,680.17,1.00139696]
[1738264111561,1.09726492,681.08,680.18,0.25639696]
[1738264112567,1.09726492,681.03,680.21,1.09677865]
[1738264112767,1.09726492,681.03,680.22,0.25639696]
[1738264113359,1.09726492,681.03,680.21,1.09677865]
[1738264113360,1.09726492,681.03,680.23,0.25640854]
[1738264113564,1.09726492,681.03,680.22,0.25640854]
[1738264113867,1.09726492,681.03,680.23,0.25640801]
[1738264114064,1.09726492,681.03,680.21,1.09677865]
[1738264114268,1.09726492,681.03,680.22,0.25640725]
[1738264114960,1.09726492,681.03,680.21,1.09677865]
[1738264116366,1.09726492,681.0,680.23,1.09677865]
[1738264119568,1.09726492,681.08,680.17,0.745]
[1738264123075,1.09726492,681.05,680.17,0.745]
[1738264126576,1.09726492,681.08,680.17,0.745]
[1738264129984,0.7705782,681.46,680.17,0.745]
[1738264129985,1.09726492,681.05,680.17,0.745]
[1738264131880,1.09726492,681.03,680.17,0.745]
[1738264135085,1.09726492,681.01,680.17,0.745]
[1738264139993,1.09854948,681.31,680.17,0.745]
[1738264139994,1.09726492,681.02,680.17,0.745]
[1738264141595,1.09726492,681.02,680.18,0.25636876]
[1738264141793,1.09726492,681.02,680.13,1.53348438]
[1738264142192,1.09726492,681.02,680.14,0.25637333]
[1738264143091,1.09726492,681.02,680.14,1.05937333]
[1738264143291,1.09726492,681.02,680.15,0.25637333]
[1738264143492,1.09726492,681.03,680.15,0.25637333]
[1738264143797,1.09726492,681.03,680.14,0.803]
[1738264146799,1.09726492,681.18,680.14,0.803]
[1738264152801,1.09726492,681.21,680.14,0.803]
[1738264155401,1.09726492,681.18,680.14,0.803]
[1738264159909,1.09726492,681.21,680.14,0.803]
[1738264162911,1.09726492,681.3,680.14,0.803]
[1738264169720,0.26989169,681.29,680.14,0.803]
[1738264169921,1.09726492,681.3,680.14,0.803]
[1738264173923,1.09726492,681.25,680.14,0.803]
[1738264177223,1.09726492,681.23,680.14,0.803]
[1738264181228,1.09726492,681.18,680.14,0.803]
[1738264184328,1.09726492,681.11,680.14,1.89977865]
[1738264187632,1.09726492,681.12,680.14,0.803]
[1738264188126,1.09726492,681.12,680.15,0.25633175]
[1738264188527,1.09726492,681.12,680.13,2.63026303]
[1738264189034,1.09726492,681.12,680.14,0.2563404]
[1738264189334,1.09726492,681.12,680.13,2.63026303]
[1738264189530,1.09726492,681.12,680.14,0.25633371]
[1738264190833,1.09726492,681.12,680.13,3.42426303]
[1738264191635,1.09726492,681.09,680.17,1.09677865]
[1738264194835,1.09726492,681.16,680.13,3.42426303]
[1738264197742,1.09726492,681.14,680.13,3.42426303]
[1738264201147,1.09726492,681.14,680.13,2.32748438]
[1738264202845,1.09726492,681.14,680.14,0.2562705]
[1738264203546,1.09726492,681.14,680.13,2.32748438]
[1738264204246,1.09726492,681.14,680.14,0.25627719]
[1738264205045,1.09726492,681.12,680.15,1.09677865]
[1738264205245,1.09726492,681.12,680.16,0.25627719]
[1738264205743,1.09726492,681.12,680.15,1.09677865]
[1738264206548,1.09726492,681.12,680.16,0.25629992]
[1738264206748,1.09726492,681.12,680.15,1.09677865]
[1738264207350,1.09726492,681.05,680.17,1.09677865]
[1738264210450,1.09726492,681.05,680.16,1.09677865]
[1738264210749,1.09726492,681.05,680.17,0.25618478]
[1738264211649,1.09726492,681.05,680.16,1.09677865]
[1738264214252,1.09726492,681.08,680.13,2.32748438]
[1738264222660,1.09726492,681.12,680.13,2.32748438]
[1738264226068,1.09726492,681.06,680.13,2.32748438]
[1738264230066,1.09726492,681.07,680.13,2.32748438]
[1738264232765,1.09726492,681.09,680.13,2.32748438]
[1738264235971,1.09726492,681.08,680.13,2.32748438]
[1738264238773,1.09726492,681.08,680.14,0.2559291]
[1738264240173,1.09726492,681.07,680.14,1.4009291]
[1738264240374,1.09726492,681.07,680.15,0.2559291]
[1738264244477,1.09726492,681.03,680.19,1.09677865]
[1738264244667,1.09726492,681.03,680.2,0.2559291]
[1738264245978,1.09726492,681.03,680.19,1.09677865]
[1738264246270,1.09726492,681.03,680.2,0.25600467]
[1738264246680,1.09726492,681.03,680.19,1.09677865]
[1738264247177,1.09726492,681.04,680.18,1.09677865]
[1738264249975,1.09726492,681.04,680.14,1.145]
[1738264249976,1.09726492,681.06,680.14,2.24177865]
[1738264250175,1.09726492,681.06,680.15,0.25606816]
[1738264252476,1.09726492,681.06,680.14,2.24177865]
[1738264252780,1.09726492,681.06,680.15,0.25605363]
[1738264253781,1.09726492,681.06,680.14,2.24177865]
[1738264254181,1.09726492,681.06,680.15,1.09677865]
[1738264256491,1.09726492,681.18,680.15,1.09677865]
[1738264256686,1.09726492,681.18,680.14,1.145]
[1738264259794,1.09726492,681.16,680.14,1.145]
[1738264263602,1.09726492,681.21,680.15,0.25600183]
[1738264264099,1.09726492,681.21,680.08,1.09677865]
[1738264264495,1.09726492,681.21,680.09,0.25600137]
[1738264265098,1.09726492,681.21,680.09,1.00600137]
[1738264265298,1.09726492,681.21,680.1,0.25597306]
[1738264267502,1.09726492,681.15,680.14,1.09677865]
[1738264270205,1.09726492,681.15,680.15,0.25588984]
[1738264270703,5.27048229,687.62,680.12,1.09677865]
[1738264270704,1.09726492,681.08,680.12,1.09677865]
[1738264270898,1.09726492,681.08,680.13,0.25589095]
[1738264271298,1.09726492,681.08,680.12,1.09677865]
[1738264271903,1.09726492,681.08,680.13,0.25589433]
[1738264276704,1.09726492,681.08,680.12,1.09677865]
[1738264276906,1.09726492,681.08,680.13,0.25577803]
[1738264277307,1.09726492,681.09,680.18,1.09677865]
[1738264278507,1.09726492,681.09,680.19,0.25576521]
[1738264280409,1.09726492,681.09,680.2,0.25576521]
[1738264280609,1.09726492,681.09,680.21,0.25576521]
[1738264280808,1.09726492,681.09,680.22,0.25576521]
[1738264281004,1.09726492,681.09,680.17,0.25576521]
[1738264281205,1.09726492,681.09,680.18,0.54968069]
[1738264281404,1.09726492,681.09,680.19,0.54967637]
[1738264281610,1.09726492,681.09,680.19,0.29403549]
[1738264281810,1.09726492,681.09,680.2,0.25559819]
[1738264283208,1.09726492,681.09,680.2,0.29403116]
[1738264283412,5.27048229,687.93,680.2,0.29403116]
[1738264283413,1.09726492,681.19,680.2,1.39080981]
[1738264287314,1.09726492,681.53,680.2,0.29403116]
[1738264291317,1.09726492,681.56,680.2,0.29403116]
[1738264292117,1.09726492,681.56,680.2,1.37003116]
[1738264293015,0.26983382,681.55,680.21,0.25547895]
[1738264294816,0.26983382,681.59,680.21,0.25547895]
[1738264295113,0.26983382,681.58,680.21,0.25547895]
[1738264295416,1.09726492,681.6,680.21,0.25547895]
[1738264295417,0.26983382,681.57,680.21,0.25547895]
[1738264295611,0.26983382,681.56,680.21,0.25547895]
[1738264295816,0.26983382,681.55,680.21,0.25547895]
[1738264296119,0.26983382,681.54,680.21,0.25547895]
[1738264296419,0.26983382,681.53,680.22,0.29402252]
[1738264296612,1.09726492,681.6,680.22,0.29402252]
[1738264297915,1.09726492,681.34,680.22,0.29402252]
[1738264301822,1.09726492,681.71,680.22,0.29402252]
[1738264304523,0.56653963,682.42,680.22,0.29402252]
[1738264304524,1.09726492,681.77,680.22,0.29402252]
[1738264304723,0.56314125,681.76,680.22,0.29402252]
[1738264304924,0.56314555,681.75,680.22,0.29402252]
[1738264305223,0.56314986,681.74,680.22,0.29402252]
[1738264305422,0.26978289,681.73,680.22,0.29402252]
[1738264305821,0.26978289,681.73,680.23,0.25514214]
[1738264306021,0.26978289,681.73,680.24,0.29401387]
[1738264306221,0.26978289,681.73,680.25,0.25514214]
[1738264306425,0.26978289,681.73,680.26,0.29400523]
[1738264306623,0.26978289,681.73,680.27,0.25514214]
[1738264306817,0.26978289,681.73,680.28,0.29399658]
[1738264307022,0.29337557,681.72,680.29,0.25514214]
[1738264307223,0.26978289,681.71,680.29,0.25514214]
[1738264307422,0.26978289,681.71,680.28,0.29399658]
[1738264307423,0.29338418,681.7,680.28,0.29399658]
[1738264307724,1.09726492,681.52,680.28,0.29399658]
[1738264311219,0.29338418,681.7,680.28,0.29399658]
[1738264315328,0.29338418,681.7,680.28,1.28699658]
[1738264319337,0.2697622,681.69,680.29,0.25497774]
[1738264319835,0.29338418,681.7,680.29,0.25497774]
[1738264320031,0.29338418,681.7,680.3,0.29398794]
[1738264320237,0.29338418,681.7,680.31,0.25497774]
[1738264320536,0.26975963,681.69,680.32,0.2939793]
[1738264320735,0.26975963,681.69,680.33,0.25497774]
[1738264320937,0.26975963,681.69,680.34,0.29397066]
[1738264321137,0.26975963,681.69,680.35,0.25497774]
[1738264321337,0.26975963,681.69,680.36,0.29396202]
[1738264321532,0.26975963,681.69,680.37,0.25497774]
[1738264321734,0.26975963,681.69,680.38,0.29395337]
[1738264321932,0.26975963,681.69,680.39,0.25497774]
[1738264322135,0.26975963,681.69,680.39,0.54892679]
[1738264322335,0.26975963,681.69,680.4,0.25497774]
[1738264324029,1.09726492,681.68,680.4,0.25497774]
[1738264324432,0.26975963,681.67,680.4,0.25497774]
[1738264325939,0.26975361,681.66,680.41,0.25493505]
[1738264326133,0.26975361,681.67,680.4,0.25493505]
[1738264326333,0.26975361,681.66,680.39,0.29394905]
[1738264326536,0.26975361,681.67,680.4,0.25494011]
[1738264326738,0.26975361,681.66,680.4,0.25494011]
[1738264326938,0.26975361,681.67,680.4,0.25494011]
[1738264327142,0.26975361,681.66,680.39,0.29394905]
[1738264327338,0.26975361,681.67,680.39,0.29394905]
[1738264327552,1.09726492,681.68,680.39,0.29394905]
[1738264327553,0.2697564,681.66,680.4,0.25494058]
[1738264327738,0.2697564,681.67,680.4,0.25494058]
[1738264327936,0.2697564,681.66,680.4,0.25494058]
[1738264328243,0.2697564,681.67,680.4,0.25494058]
[1738264328439,0.2697564,681.66,680.4,0.25494058]
[1738264328636,0.2697564,681.65,680.4,0.25494058]
[1738264328842,0.2697564,681.64,680.4,0.25494058]
[1738264329143,0.2697564,681.63,680.4,0.25494058]
[1738264329342,1.09726492,681.68,680.39,0.29394905]
[1738264329551,1.09726492,681.64,680.39,0.29394905]
[1738264330651,0.26976391,681.63,680.39,0.29394905]
[1738264331052,0.26976391,681.63,680.4,0.25502018]
[1738264332148,1.09726492,681.64,680.39,0.29394905]
[1738264332353,0.26978004,681.63,680.4,0.25500458]
[1738264333054,1.09726492,681.48,680.4,0.25500458]
[1738264333853,1.09726492,681.48,680.39,0.29394905]
[1738264334055,1.09726492,681.48,680.4,0.25500685]
[1738264334555,1.09726492,681.48,680.4,1.03500685]
[1738264334754,1.09726492,681.48,680.41,0.25500685]
[1738264334954,1.09726492,681.48,680.4,0.78]
[1738264335655,1.09726492,681.48,680.41,0.25491959]
[1738264337258,1.09726492,681.46,680.41,0.25491959]
[1738264338162,1.09726492,681.46,680.4,0.78]
[1738264338454,0.26979385,681.45,680.4,0.78]
[1738264338660,1.09726492,681.46,680.4,0.78]
[1738264339761,0.26979104,681.45,680.41,0.25501818]
[1738264340161,1.09726492,681.46,680.41,0.25501818]
[1738264340956,1.09726492,681.46,680.4,0.78]
[1738264341362,1.09726492,681.41,680.4,0.78]
[1738264344062,1.09726492,681.49,680.4,0.78]
[1738264346965,1.09726492,681.51,680.4,0.78]
[1738264349765,1.09726492,681.5,680.4,0.78]
[1738264351666,0.26979394,681.49,680.41,0.25504429]
[1738264351865,1.09726492,681.5,680.39,0.29394905]
[1738264352064,0.26979514,681.49,680.4,0.25505156]
[1738264352767,1.09726492,681.47,680.4,0.25505156]
[1738264352967,0.26979514,681.46,680.4,1.35805156]
[1738264353169,0.26979514,681.46,680.41,0.25505156]
[1738264353570,0.26979514,681.45,680.42,0.25502754]
[1738264353869,0.26979514,681.44,680.43,0.25502754]
[1738264354062,0.26979514,681.46,680.41,0.25502754]
[1738264354264,0.26979514,681.45,680.42,0.25502754]
[1738264354572,0.26979514,681.44,680.43,0.25502754]
[1738264354763,0.26979514,681.46,680.41,0.25502754]
[1738264354965,0.26979514,681.45,680.42,0.25502754]
[1738264355168,0.26979514,681.44,680.43,0.25502754]
[1738264355369,0.26979514,681.46,680.41,0.25502754]
[1738264355569,1.09726492,681.47,680.42,0.25502754]
[1738264355570,0.26979514,681.45,680.42,0.25502754]
[1738264355765,0.26979514,681.44,680.43,0.25502754]
[1738264355964,0.26979514,681.43,680.44,0.25502754]
[1738264356168,0.26979514,681.42,680.45,0.25502754]
[1738264356365,0.26979514,681.41,680.46,0.25502754]
[1738264356564,0.26979514,681.4,680.47,0.25502754]
[1738264356771,1.09726492,681.36,680.4,1.103]
[1738264356972,1.09726492,681.36,680.41,0.25504528]
[1738264360775,1.09726492,681.32,680.43,1.09677865]
[1738264360968,1.09726492,681.32,680.44,0.25504528]
[1738264362073,1.09726492,681.32,680.43,1.09677865]
[1738264362274,1.09726492,681.32,680.44,0.25501092]
[1738264362470,1.09726492,681.32,680.43,1.09677865]
[1738264362774,1.09726492,681.32,680.44,0.255017]
[1738264364377,1.09726492,681.32,680.39,0.29394905]
[1738264364378,1.09726492,681.38,680.41,1.09677865]
[1738264365277,1.09726492,681.38,680.41,1.98077865]
[1738264365875,1.09726492,681.38,680.42,0.25504668]
[1738264367078,1.09726492,681.38,680.41,1.98077865]
[1738264367378,1.09726492,681.38,680.42,0.25501828]
[1738264368580,1.09726492,681.37,680.43,1.09677865]
[1738264370983,1.09726492,681.37,680.44,0.25502806]
[1738264371378,1.09726492,681.4,680.44,0.25502806]
[1738264371580,1.09726492,681.4,680.43,1.09677865]
[1738264371977,1.09726492,681.4,680.44,0.25500823]
[1738264372782,1.09726492,681.4,680.43,1.09677865]
[1738264374387,1.09726492,681.41,680.44,0.25502694]
[1738264374582,1.09726492,681.41,680.43,0.25502694]
[1738264374778,1.09726492,681.41,680.42,1.09677865]
[1738264377483,0.76950178,681.67,680.41,0.884]
[1738264377484,1.09726492,681.35,680.41,0.884]
[1738264381889,1.09726492,681.44,680.41,0.884]
[1738264382083,0.26988322,681.43,680.41,0.884]
[1738264383385,1.09726492,681.44,680.41,0.884]
[1738264384693,1.09726492,681.38,680.41,0.884]
[1738264387695,1.09726492,681.67,680.41,0.884]
[1738264387897,0.56321552,681.66,680.41,0.884]
[1738264388195,0.56321982,681.65,680.41,0.884]
[1738264388395,0.26981412,681.64,680.41,0.884]
[1738264388693,0.29341431,681.63,680.41,0.884]
[1738264388894,0.26981412,681.62,680.41,0.884]
[1738264389095,0.29342292,681.61,680.41,0.884]
[1738264389295,0.26981412,681.6,680.41,0.884]
[1738264389494,0.29343153,681.59,680.41,0.884]
[1738264390293,0.26981449,681.58,680.41,0.884]
[1738264390492,0.29343153,681.59,680.41,0.884]
[1738264391296,0.26981688,681.58,680.41,0.884]
[1738264391699,0.29343153,681.59,680.41,0.884]
[1738264392096,0.26982771,681.58,680.41,0.884]
[1738264392896,0.26984614,681.57,680.41,0.884]
[1738264393092,0.26984614,681.56,680.41,0.884]
[1738264393296,0.26984614,681.55,680.41,0.884]
[1738264393497,0.26984614,681.58,680.41,0.884]
[1738264393698,0.29343153,681.59,680.41,0.884]
[1738264393900,0.26984308,681.58,680.41,0.884]
[1738264396901,1.367108,681.58,680.41,0.884]
[1738264397098,0.26984308,681.57,680.41,0.884]
[1738264397699,1.09726492,681.58,680.41,0.884]
[1738264397893,0.26983826,681.57,680.41,0.884]
[1738264400204,1.09726492,681.52,680.41,0.884]
[1738264400404,0.26983826,681.51,680.41,0.884]
[1738264402498,1.09726492,681.52,680.41,0.884]
[1738264402703,0.26983554,681.51,680.41,0.884]
[1738264404204,0.26983554,681.53,680.41,0.884]
[1738264404404,0.26983554,681.52,680.41,0.884]
[1738264404606,0.26983554,681.51,680.41,0.884]
[1738264404805,0.26983554,681.5,680.41,0.884]
[1738264404999,0.26983554,681.49,680.41,0.884]
[1738264405205,0.26983554,681.53,680.41,0.884]
[1738264405401,0.26983554,681.52,680.41,0.884]
[1738264405606,0.26983554,681.51,680.41,0.884]
[1738264405799,0.26983554,681.53,680.41,0.884]
[1738264406004,0.26983554,681.52,680.41,0.884]
[1738264406199,0.26983554,681.53,680.41,0.884]
[1738264406407,0.26983554,681.52,680.41,0.884]
[1738264406606,1.09726492,681.54,680.41,0.884]
[1738264406607,0.26983554,681.53,680.41,0.884]
[1738264406806,0.26983554,681.52,680.41,0.884]
[1738264407106,0.26983554,681.51,680.41,0.884]
[1738264407308,0.26983554,681.53,680.41,0.884]
[1738264407508,1.09726492,681.46,680.41,0.884]
[1738264407708,0.26983007,681.45,680.41,0.884]
[1738264411410,1.09726492,681.42,680.41,0.884]
[1738264411607,0.26983007,681.41,680.41,0.884]
[1738264414108,1.09726492,681.42,680.41,0.884]
[1738264414313,1.09726492,681.28,680.41,0.884]
[1738264417311,1.09726492,681.33,680.41,0.884]
[1738264420219,1.09726492,681.31,680.41,0.884]
[1738264423225,1.09726492,681.3,680.41,0.884]
[1738264426321,1.09726492,681.26,680.41,0.884]
[1738264429127,1.09726492,681.29,680.41,0.884]
[1738264431529,1.09726492,681.28,680.41,0.884]
[1738264434532,1.09726492,681.25,680.41,0.884]
[1738264438031,1.09726492,681.17,680.41,0.884]
[1738264443834,1.09854948,681.43,680.41,0.884]
[1738264443835,1.09726492,681.22,680.41,0.884]
[1738264446929,1.09726492,681.21,680.41,0.884]
[1738264450338,1.09726492,681.2,680.41,0.884]
[1738264453237,0.76994188,681.58,680.41,0.884]
[1738264453238,1.09726492,681.16,680.41,0.884]
[1738264456542,1.09726492,681.23,680.41,0.884]
[1738264460644,1.09726492,681.32,680.41,0.884]
[1738264462438,14.27736238,695.13,680.41,0.884]
[1738264462643,0.26985016,681.58,680.41,0.884]
[1738264462845,0.563286,681.58,680.41,0.884]
[1738264463046,0.26985016,681.57,680.41,0.884]
[1738264465548,0.29343584,681.58,680.41,0.884]
[1738264465549,1.10011115,681.38,680.41,0.884]
[1738264469251,1.10011115,681.37,680.41,0.884]
[1738264472852,0.26991985,681.36,680.41,0.884]
[1738264473553,0.26991985,681.35,680.41,0.884]
[1738264473752,0.26991985,681.34,680.41,0.884]
[1738264474048,0.26991985,681.33,680.41,0.884]
[1738264474252,0.26991985,681.39,680.41,0.884]
[1738264474450,0.26991985,681.38,680.41,0.884]
[1738264474650,0.26991985,681.39,680.41,0.884]
[1738264475950,0.56343751,681.39,680.41,0.884]
[1738264476150,1.10011115,681.11,680.41,0.884]
[1738264476349,0.26991985,681.1,680.41,0.884]
[1738264479848,0.26991985,681.14,680.41,0.884]
[1738264480056,0.26991985,681.13,680.41,0.884]
[1738264480253,0.26991985,681.12,680.41,0.884]
[1738264480456,0.26991985,681.14,680.41,0.884]
[1738264480650,0.26991985,681.13,680.41,0.884]
[1738264480858,0.26991985,681.14,680.41,0.884]
[1738264482157,1.10011115,681.15,680.41,0.884]
[1738264482358,0.26996405,681.14,680.41,0.884]
[1738264483461,0.26996405,681.13,680.41,0.884]
[1738264483656,0.26996405,681.12,680.41,0.884]
[1738264483860,0.26996405,681.11,680.41,0.884]
[1738264484063,0.26996405,681.1,680.41,0.884]
[1738264484362,0.26996405,681.09,680.41,0.884]
[1738264484561,0.26996405,681.08,680.41,0.884]
[1738264484763,0.26996405,681.07,680.41,0.884]
[1738264485060,0.26996405,681.06,680.41,0.884]
[1738264485263,0.26996405,681.05,680.41,0.884]
[1738264485458,0.26996405,681.15,680.41,0.884]
[1738264485659,0.26995903,681.14,680.41,0.884]
[1738264485863,0.26995903,681.13,680.41,0.884]
[1738264486064,0.26995903,681.12,680.41,0.884]
[1738264486261,0.26995903,681.15,680.41,0.884]
[1738264486758,0.26995903,681.21,680.41,0.884]
[1738264486964,0.26995903,681.2,680.41,0.884]
[1738264487163,0.26995903,681.21,680.41,0.884]
[1738264488864,1.10011115,681.22,680.41,0.884]
[1738264489069,0.2699628,681.21,680.41,0.884]
[1738264489966,0.2699628,681.2,680.41,0.884]
[1738264490162,0.2699628,681.19,680.41,0.884]
[1738264490368,0.2699628,681.18,680.41,0.884]
[1738264490568,0.2699628,681.17,680.41,0.884]
[1738264490768,0.2699628,681.22,680.41,0.884]
[1738264492871,1.10011115,681.2,680.41,0.884]
[1738264493170,0.2699628,681.19,680.41,0.884]
[1738264495172,1.10011115,681.18,680.41,0.884]
[1738264495371,0.2699628,681.17,680.41,0.884]
[1738264495573,0.26994923,681.16,680.41,0.884]
[1738264495873,0.26994923,681.15,680.41,0.884]
[1738264496069,0.26994923,681.17,680.41,0.884]
[1738264496270,1.10011115,681.18,680.41,0.884]
[1738264496271,0.26994923,681.16,680.41,0.884]
[1738264496471,0.26994923,681.17,680.41,0.884]
[1738264496672,0.26994923,681.16,680.41,0.884]
[1738264496971,0.26994923,681.15,680.41,0.884]
[1738264497172,0.26994923,681.17,680.41,0.884]
[1738264498868,1.10011115,681.18,680.41,0.884]
[1738264499073,0.26995589,681.17,680.41,0.884]
[1738264500475,1.10011115,681.18,680.41,0.884]
[1738264500674,0.2699667,681.17,680.41,0.884]
[1738264502176,1.10011115,681.1,680.41,0.884]
[1738264502377,0.2699667,681.09,680.41,0.884]
[1738264503475,0.26995655,681.08,680.41,0.884]
[1738264503777,0.26995655,681.07,680.41,0.884]
[1738264503969,0.26995655,681.09,680.41,0.884]
[1738264505670,1.10011115,681.02,680.41,0.884]
[1738264505869,0.26995655,681.01,680.41,0.884]
[1738264507477,1.10011115,681.02,680.41,0.884]
[1738264508682,1.10011115,680.91,680.41,0.884]
[1738264512283,1.10011115,681.07,680.41,0.884]
[1738264516189,1.10011115,681.09,680.41,0.884]
[1738264518493,1.10011115,681.12,680.41,0.884]
[1738264522186,1.39362881,681.39,680.41,0.884]
[1738264522187,1.10011115,681.1,680.41,0.884]
[1738264526396,0.2699544,681.09,680.41,0.884]
[1738264528296,0.26995324,681.08,680.41,0.884]
[1738264528591,1.10011115,681.0,680.41,0.884]
[1738264532299,1.10011115,681.01,680.41,0.884]
[1738264535697,1.10011115,680.98,680.41,0.884]